fUST/lending_fUST_20250709
["ID","MTS","AMOUNT","RATE_DAILY","PERIOD"]
[370448459,1752023453655,-460.0,0.0002,2]
[370448460,1752023453665,-460.0,0.0002,2]
[370448461,1752023453675,-460.0,0.0002,2]
[370448462,1752023453686,-460.0,0.0002,2]
[370448463,1752023453696,-460.0,0.0002,2]
[370448464,1752023453705,-576.3,0.0002,2]
[370448465,1752023453715,-500.52,0.0002,2]
[370448466,1752023453725,-3346.57,0.0002,2]
[370448467,1752023453735,-460.0,0.0002,2]
[370448468,1752023453745,-460.0,0.0002,2]
[370448469,1752023453754,-460.0,0.0002,2]
[370448470,1752023453764,-460.0,0.0002,2]
[370448471,1752023453774,-623.23,0.0002,2]
[370448472,1752023453784,-460.0,0.0002,2]
[370448473,1752023453794,-460.0,0.0002,2]
[370448474,1752023453804,-460.0,0.0002,2]
[370448475,1752023453814,-1000.0,0.00020021,2]
[370448476,1752023453824,-500.0,0.00020021,2]
[370448477,1752023453833,-1000.0,0.00020021,2]
[370448478,1752023453843,-356.04404209,0.00020021,2]
[370448479,1752023453852,-1000.0,0.00020021,2]
[370448480,1752023453862,-1093.61440722,0.00020021,2]
[370448481,1752023453872,-1000.0,0.00020021,2]
[370448482,1752023453882,-1000.0,0.00020021,2]
[370448483,1752023453892,-1000.0,0.00020021,2]
[370448484,1752023453901,-491.04253568,0.00020021,2]
[370448485,1752023453911,-1000.0,0.00020021,2]
[370448486,1752023453920,-814.5323604,0.00020021,2]
[370448487,1752023453931,-1000.0,0.00020021,2]
[370448488,1752023453940,-160.0,0.00020024,2]
[370448489,1752023453950,-160.0,0.00020024,2]
[370448490,1752023453959,-215.2437778,0.00020024,2]
[370448491,1752023453968,-160.0,0.00020024,2]
[370448492,1752023453978,-160.0,0.00020024,2]
[370448493,1752023453988,-160.0,0.00020024,2]
[370448494,1752023453997,-12586.7184932,0.00020024,2]
[370448495,1752023454007,-160.0,0.00020024,2]
[370448496,1752023454016,-837.89306043,0.00020024,2]
[370448497,1752023454025,-848.40570879,0.00020024,2]
[370448498,1752023454035,-230.51100374,0.00020024,2]
[370448499,1752023454044,-214.10276668,0.00020024,2]
[370448500,1752023454054,-151.0,0.00020045,2]
[370448501,1752023454063,-151.0,0.00020045,2]
[370448502,1752023454073,-151.0,0.00020045,2]
[370448503,1752023454083,-312.444814,0.00020045,2]
[370448504,1752023454092,-312.444814,0.00020045,2]
[370448505,1752023454102,-178.177774,0.00020045,2]
[370448506,1752023454111,-178.177774,0.00020045,2]
[370448507,1752023454121,-690.642,0.00020046,2]
[370448508,1752023454135,-500.0,0.00020046,2]
[370448509,1752023454144,-500.0,0.00020046,2]
[370448510,1752023454155,-25000.0,0.00020046,2]
[370448511,1752023454164,-500.0,0.00020046,2]
[370448512,1752023454174,-22683.72233151,0.00020046,2]
[370448513,1752023454184,-207.4,0.00020046,2]
[370448514,1752023454193,-300.0,0.00020067,2]
[370448515,1752023454203,-151.0,0.000201,3]
[370448516,1752023454213,-716.195754,0.00020101,2]
[370448517,1752023454223,-5239.9754233,0.00020107,2]
[370448518,1752023454232,-166.794053,0.00020131,2]
[370448519,1752023454242,-742.6949969,0.00020156,2]
[370448520,1752023454251,-528.320447,0.00020187,2]
[370448521,1752023454261,-770.17471178,0.00020211,2]
[370448522,1752023454271,-798.67117612,0.00020266,2]
[370448523,1752023454280,-1500.0,0.00020268,2]
[370448524,1752023454290,-166.794053,0.00020271,2]
[370448525,1752023454299,-460.0,0.00020273,2]
[370448526,1752023454309,-487.58207288,0.00020273,2]
[370448527,1752023454319,-460.0,0.00020273,2]
[370448528,1752023454329,-460.0,0.00020273,2]
[370448529,1752023454339,-460.0,0.00020273,2]
[370448530,1752023454348,-460.0,0.00020273,2]
[370448531,1752023454357,-460.0,0.00020273,2]
[370448532,1752023454367,-460.0,0.00020273,2]
[370448533,1752023454377,-460.0,0.00020273,2]
[370448534,1752023454387,-460.0,0.00020273,2]
[370448535,1752023454397,-460.0,0.00020273,2]
[370448536,1752023454407,-427.27566779,0.00020273,2]
[370448537,1752023454417,-460.0,0.00020273,2]
[370448538,1752023454428,-460.0,0.00020273,2]
[370448539,1752023454438,-460.0,0.00020273,2]
[370448540,1752023454448,-460.0,0.00020273,2]
[370448541,1752023454458,-460.0,0.00020273,2]
[370448542,1752023454467,-460.0,0.00020273,2]
[370448543,1752023454477,-460.0,0.00020273,2]
[370448544,1752023454486,-460.0,0.00020273,2]
[370448545,1752023454496,-460.0,0.00020273,2]
[370448546,1752023454506,-460.0,0.00020273,2]
[370448547,1752023454515,-460.0,0.00020273,2]
[370448548,1752023454525,-460.0,0.00020273,2]
[370448549,1752023454535,-460.0,0.00020273,2]
[370448550,1752023454545,-460.0,0.00020273,2]
[370448551,1752023454555,-460.0,0.00020273,2]
[370448552,1752023454565,-181.97164219,0.00020273,2]
[370448553,1752023454575,-460.0,0.00020273,2]
[370448554,1752023454587,-460.0,0.00020273,2]
[370448555,1752023454597,-460.0,0.00020273,2]
[370448556,1752023454608,-550.72,0.00020273,2]
[370448557,1752023454617,-460.0,0.00020273,2]
[370448558,1752023454627,-460.0,0.00020273,2]
[370448559,1752023454638,-460.0,0.00020273,2]
[370448560,1752023454648,-460.0,0.00020273,2]
[370448561,1752023454659,-460.0,0.00020273,2]
[370448562,1752023454668,-460.0,0.00020273,2]
[370448563,1752023454679,-460.0,0.00020273,2]
[370448564,1752023454691,-546.68,0.00020273,2]
[370448565,1752023454703,-361.43,0.00020273,2]
[370448566,1752023454713,-460.0,0.00020273,2]
[370448567,1752023454724,-165.955004,0.00020273,2]
[370448568,1752023454735,-460.0,0.00020273,2]
[370448569,1752023454745,-151.0,0.00020273,2]
[370448570,1752023454755,-460.0,0.00020273,2]
[370448571,1752023454764,-460.0,0.00020273,2]
[370448572,1752023454775,-460.0,0.00020273,2]
[370448573,1752023454786,-460.0,0.00020273,2]
[370448574,1752023454796,-151.0,0.00020273,2]
[370448575,1752023454805,-460.0,0.00020273,2]
[370448576,1752023454815,-151.0,0.00020273,2]
[370448577,1752023454825,-151.0,0.00020273,2]
[370448578,1752023454834,-284.398136,0.00020273,2]
[370448579,1752023454844,-460.0,0.00020273,2]
[370448580,1752023454854,-460.0,0.00020273,2]
[370448581,1752023454864,-460.0,0.00020273,2]
[370448582,1752023454874,-771.68,0.00020273,2]
[370448583,1752023454883,-460.0,0.00020273,2]
[370448584,1752023454894,-582.51,0.00020273,2]
[370448585,1752023454903,-151.0,0.00020273,2]
[370448586,1752023454914,-460.0,0.00020273,2]
[370448587,1752023454925,-151.0,0.00020273,2]
[370448588,1752023454935,-460.0,0.00020273,2]
[370448589,1752023454945,-460.0,0.00020273,2]
[370448590,1752023454955,-151.0,0.00020273,2]
[370448591,1752023454965,-460.0,0.00020273,2]
[370448592,1752023454977,-460.0,0.00020273,2]
[370448593,1752023454986,-515.87,0.00020273,2]
[370448594,1752023454996,-460.0,0.00020273,2]
[370448595,1752023455006,-460.0,0.00020273,2]
[370448596,1752023455016,-460.0,0.00020273,2]
[370448597,1752023455026,-460.0,0.00020273,2]
[370448598,1752023455037,-883.64,0.00020273,2]
[370448599,1752023455047,-460.0,0.00020273,2]
[370448600,1752023455058,-2564.17,0.00020273,2]
[370448601,1752023455068,-1165.92,0.00020273,2]
[370448602,1752023455078,-538.09417983,0.00020273,2]
[370448603,1752023455087,-460.0,0.00020273,2]
[370448604,1752023455097,-993.18,0.00020273,2]
[370448605,1752023455108,-904.93,0.00020273,2]
[370448606,1752023455119,-460.0,0.00020273,2]
[370448607,1752023455130,-460.0,0.00020273,2]
[370448608,1752023455139,-460.0,0.00020273,2]
[370448609,1752023455149,-1017.89,0.00020273,2]
[370448610,1752023455160,-188.29,0.00020273,2]
[370448611,1752023455169,-236.64201642,0.00020273,2]
[370448612,1752023455180,-460.0,0.00020273,2]
[370448613,1752023455190,-975.27,0.00020273,2]
[370448614,1752023455199,-460.0,0.00020273,2]
[370448615,1752023455210,-460.0,0.00020273,2]
[370448616,1752023455330,-460.0,0.00020273,2]
[370448617,1752023455340,-460.0,0.00020273,2]
[370448618,1752023455350,-460.0,0.00020273,2]
[370448619,1752023455360,-460.0,0.00020273,2]
[370448620,1752023455369,-460.0,0.00020273,2]
[370448621,1752023455379,-460.0,0.00020273,2]
[370448622,1752023455390,-459.41059472,0.00020273,2]
[370448623,1752023455399,-460.0,0.00020273,2]
[370448624,1752023455409,-460.0,0.00020273,2]
[370448625,1752023455419,-151.0,0.00020273,2]
[370448626,1752023455429,-3735.49,0.00020273,2]
[370448627,1752023455438,-460.0,0.00020273,2]
[370448628,1752023455449,-151.0,0.00020273,2]
[370448629,1752023455459,-358.66426709,0.00020273,2]
[370448630,1752023455468,-151.0,0.00020273,2]
[370448631,1752023455479,-460.0,0.00020273,2]
[370448632,1752023455488,-460.0,0.00020273,2]
[370448633,1752023455499,-460.0,0.00020273,2]
[370448634,1752023455509,-2026.08,0.00020273,2]
[370448635,1752023455520,-553.9,0.00020273,2]
[370448636,1752023455530,-460.0,0.00020273,2]
[370448637,1752023455540,-630.78,0.00020273,2]
[370448638,1752023455550,-460.0,0.00020273,2]
[370448639,1752023455560,-460.0,0.00020273,2]
[370448640,1752023455569,-460.0,0.00020273,2]
[370448641,1752023455579,-1799.14,0.00020273,2]
[370448642,1752023455589,-460.0,0.00020273,2]
[370448643,1752023455600,-2192.58,0.00020273,2]
[370448644,1752023455610,-460.0,0.00020273,2]
[370448645,1752023455619,-460.0,0.00020273,2]
[370448646,1752023455628,-460.0,0.00020273,2]
[370448647,1752023455638,-460.0,0.00020273,2]
[370448648,1752023455647,-1087.45,0.00020273,2]
[370448649,1752023455656,-848.32,0.00020273,2]
[370448650,1752023455666,-460.0,0.00020273,2]
[370448651,1752023455676,-1145.24,0.00020273,2]
[370448652,1752023455689,-460.0,0.00020273,2]
[370448653,1752023455698,-460.0,0.00020273,2]
[370448654,1752023455708,-460.0,0.00020273,2]
[370448655,1752023455719,-572.26,0.00020273,2]
[370448656,1752023455730,-460.0,0.00020273,2]
[370448657,1752023455740,-504.62,0.00020273,2]
[370448658,1752023455750,-460.0,0.00020273,2]
[370448659,1752023455761,-460.0,0.00020273,2]
[370448660,1752023455772,-460.0,0.00020273,2]
[370448661,1752023455782,-460.0,0.00020273,2]
[370448662,1752023455792,-723.73,0.00020273,2]
[370448663,1752023455801,-460.0,0.00020273,2]
[370448664,1752023455811,-460.0,0.00020273,2]
[370448665,1752023455821,-1151.74,0.00020273,2]
[370448666,1752023455831,-460.0,0.00020273,2]
[370448667,1752023455844,-460.0,0.00020273,2]
[370448668,1752023455855,-460.0,0.00020273,2]
[370448669,1752023455865,-676.78,0.00020273,2]
[370448670,1752023455878,-1444.34,0.00020273,2]
[370448671,1752023455888,-460.0,0.00020273,2]
[370448672,1752023455898,-460.0,0.00020273,2]
[370448673,1752023455909,-460.0,0.00020273,2]
[370448674,1752023455924,-460.0,0.00020273,2]
[370448675,1752023455934,-565.55,0.00020273,2]
[370448676,1752023455943,-460.0,0.00020273,2]
[370448677,1752023455952,-1510.41,0.00020273,2]
[370448678,1752023455962,-460.0,0.00020273,2]
[370448679,1752023455973,-460.0,0.00020273,2]
[370448680,1752023455982,-460.0,0.00020273,2]
[370448681,1752023455992,-460.0,0.00020273,2]
[370448682,1752023456001,-460.0,0.00020273,2]
[370448683,1752023456011,-576.3,0.00020273,2]
[370448684,1752023456020,-500.52,0.00020273,2]
[370448685,1752023456029,-3346.57,0.00020273,2]
[370448686,1752023456038,-460.0,0.00020273,2]
[370448687,1752023456048,-460.0,0.00020273,2]
[370448688,1752023456057,-623.23,0.00020273,2]
[370448689,1752023456066,-460.0,0.00020273,2]
[370448690,1752023456076,-151.0,0.000203,4]
[370448691,1752023456085,-151.0,0.000203,4]
[370448692,1752023456095,-261.0234123,0.00020301,2]
[370448693,1752023456113,-5239.9754233,0.00020314,3]
[370448694,1752023456132,-828.22200964,0.00020321,2]
[370448695,1752023456146,-3000.0,0.00020342,2]
[370448696,1752023456162,-858.86622399,0.00020376,2]
[370448697,1752023456180,-151.0,0.000204,4]
[370448698,1752023456197,-166.794053,0.00020411,2]
[370448699,1752023456213,-890.64427428,0.00020431,2]
[370448700,1752023456228,-509.02054853,0.00020491,2]
[370448701,1752023456244,-500.0,0.00020491,2]
[370448702,1752023456261,-500.0,0.00020491,2]
[370448703,1752023456274,-500.4743548,0.00020495,2]
[370448704,1752023456287,-500.0,0.000205,2]
[370448705,1752023456302,-600.0,0.000205,2]
[370448706,1752023456318,-500.0,0.000205,2]
[370448707,1752023456333,-500.98628859,0.000205,2]
[370448708,1752023456352,-500.0,0.000205,2]
[370448709,1752023456365,-501.28097156,0.000205,2]
[370448710,1752023456376,-500.0,0.000205,2]
[370448711,1752023456393,-500.0,0.000205,2]
[370448712,1752023456407,-501.26556098,0.000205,2]
[370448713,1752023456420,-151.0,0.000205,3]
[370448714,1752023456437,-151.0,0.000205,3]
[370448715,1752023456450,-12586.7184932,0.00020521,3]
[370448716,1752023456463,-214.10276668,0.00020521,3]
[370448717,1752023456477,-848.40570879,0.00020521,3]
[370448718,1752023456491,-5239.9754233,0.00020521,3]
[370448719,1752023456505,-202.00765096,0.00020529,2]
[370448720,1752023456519,-290.44314168,0.00020547,2]
[370448721,1752023456532,-460.0,0.00020547,2]
[370448722,1752023456546,-460.0,0.00020547,2]
[370448723,1752023456559,-460.0,0.00020547,2]
[370448724,1752023456573,-460.0,0.00020547,2]
[370448725,1752023456586,-460.0,0.00020547,2]
[370448726,1752023456600,-460.0,0.00020547,2]
[370448727,1752023456616,-460.0,0.00020547,2]
[370448728,1752023456630,-460.0,0.00020547,2]
[370448729,1752023456644,-460.0,0.00020547,2]
[370448730,1752023456658,-460.0,0.00020547,2]
[370448731,1752023456671,-460.0,0.00020547,2]
[370448732,1752023456686,-460.0,0.00020547,2]
[370448733,1752023456701,-460.0,0.00020547,2]
[370448734,1752023456716,-460.0,0.00020547,2]
[370448735,1752023456730,-460.0,0.00020547,2]
[370448736,1752023456744,-407.30170349,0.00020547,2]
[370448737,1752023456759,-460.0,0.00020547,2]
[370448738,1752023456775,-460.0,0.00020547,2]
[370448739,1752023456789,-460.0,0.00020547,2]
[370448740,1752023456802,-460.0,0.00020547,2]
[370448741,1752023456816,-460.0,0.00020547,2]
[370448742,1752023456831,-460.0,0.00020547,2]
[370448743,1752023456843,-460.0,0.00020547,2]
[370448744,1752023456858,-600.62262217,0.00020547,2]
[370448745,1752023456871,-460.0,0.00020547,2]
[370448746,1752023456886,-151.0,0.00020547,2]
[370448747,1752023456900,-550.72,0.00020547,2]
[370448748,1752023456915,-460.0,0.00020547,2]
[370448749,1752023456929,-203.97894514,0.00020547,2]
[370448750,1752023456942,-460.0,0.00020547,2]
[370448751,1752023456955,-151.0,0.00020547,2]
[370448752,1752023456969,-460.0,0.00020547,2]
[370448753,1752023456983,-460.0,0.00020547,2]
[370448754,1752023456997,-460.0,0.00020547,2]
[370448755,1752023457010,-546.68,0.00020547,2]
[370448756,1752023457023,-151.0,0.00020547,2]
[370448757,1752023457036,-151.0,0.00020547,2]
[370448758,1752023457050,-460.0,0.00020547,2]
[370448759,1752023457065,-460.0,0.00020547,2]
[370448760,1752023457078,-460.0,0.00020547,2]
[370448761,1752023457092,-460.0,0.00020547,2]
[370448762,1752023457106,-460.0,0.00020547,2]
[370448763,1752023457120,-460.0,0.00020547,2]
[370448764,1752023457133,-460.0,0.00020547,2]
[370448765,1752023457148,-460.0,0.00020547,2]
[370448766,1752023457162,-460.0,0.00020547,2]
[370448767,1752023457175,-771.68,0.00020547,2]
[370448768,1752023457184,-460.0,0.00020547,2]
[370448769,1752023457346,-582.51,0.00020547,2]
[370448770,1752023457370,-460.0,0.00020547,2]
[370448771,1752023457380,-460.0,0.00020547,2]
[370448772,1752023457391,-460.0,0.00020547,2]
[370448773,1752023457402,-460.0,0.00020547,2]
[370448774,1752023457411,-460.0,0.00020547,2]
[370448775,1752023457422,-515.87,0.00020547,2]
[370448776,1752023457433,-460.0,0.00020547,2]
[370448777,1752023457443,-460.0,0.00020547,2]
[370448778,1752023457452,-460.0,0.00020547,2]
[370448779,1752023457461,-883.64,0.00020547,2]
[370448780,1752023457471,-460.0,0.00020547,2]
[370448781,1752023457480,-2564.17,0.00020547,2]
[370448782,1752023457490,-1165.92,0.00020547,2]
[370448783,1752023457500,-460.0,0.00020547,2]
[370448784,1752023457509,-993.18,0.00020547,2]
[370448785,1752023457519,-904.93,0.00020547,2]
[370448786,1752023457528,-460.0,0.00020547,2]
[370448787,1752023457539,-460.0,0.00020547,2]
[370448788,1752023457549,-460.0,0.00020547,2]
[370448789,1752023457559,-1017.89,0.00020547,2]
[370448790,1752023457569,-460.0,0.00020547,2]
[370448791,1752023457578,-975.27,0.00020547,2]
[370448792,1752023457587,-550.03,0.00020547,2]
[370448793,1752023457597,-460.0,0.00020547,2]
[370448794,1752023457607,-2827.694685,0.00020547,2]
[370448795,1752023457616,-460.0,0.00020547,2]
[370448796,1752023457627,-460.0,0.00020547,2]
[370448797,1752023457636,-460.0,0.00020547,2]
[370448798,1752023457646,-2827.694685,0.00020547,2]
[370448799,1752023457655,-460.0,0.00020547,2]
[370448800,1752023457664,-460.0,0.00020547,2]
[370448801,1752023457674,-460.0,0.00020547,2]
[370448802,1752023457692,-460.0,0.00020547,2]
[370448803,1752023457708,-3735.49,0.00020547,2]
[370448804,1752023457714,-460.0,0.00020547,2]
[370448805,1752023457721,-460.0,0.00020547,2]
[370448806,1752023457729,-506.03649688,0.00020547,2]
[370448807,1752023457736,-460.0,0.00020547,2]
[370448808,1752023457745,-460.0,0.00020547,2]
[370448809,1752023457752,-2026.08,0.00020547,2]
[370448810,1752023457760,-553.9,0.00020547,2]
[370448811,1752023457769,-460.0,0.00020547,2]
[370448812,1752023457778,-460.0,0.00020547,2]
[370448813,1752023457787,-360.25,0.00020547,2]
[370448814,1752023457794,-630.78,0.00020547,2]
[370448815,1752023457802,-460.0,0.00020547,2]
[370448816,1752023457808,-1799.14,0.00020547,2]
[370448817,1752023457815,-460.0,0.00020547,2]
[370448818,1752023457821,-2192.58,0.00020547,2]
[370448819,1752023457829,-460.0,0.00020547,2]
[370448820,1752023457836,-460.0,0.00020547,2]
[370448821,1752023457842,-460.0,0.00020547,2]
[370448822,1752023457849,-460.0,0.00020547,2]
[370448823,1752023457856,-1087.45,0.00020547,2]
[370448824,1752023457862,-848.32,0.00020547,2]
[370448825,1752023457870,-460.0,0.00020547,2]
[370448826,1752023457876,-1145.24,0.00020547,2]
[370448827,1752023457882,-460.0,0.00020547,2]
[370448828,1752023457890,-460.0,0.00020547,2]
[370448829,1752023457896,-572.26,0.00020547,2]
[370448830,1752023457902,-460.0,0.00020547,2]
[370448831,1752023457909,-504.62,0.00020547,2]
[370448832,1752023457916,-281.68,0.00020547,2]
[370448833,1752023457923,-460.0,0.00020547,2]
[370448834,1752023457932,-460.0,0.00020547,2]
[370448835,1752023457939,-460.0,0.00020547,2]
[370448836,1752023457946,-723.73,0.00020547,2]
[370448837,1752023457952,-320.03897064,0.00020547,2]
[370448838,1752023457960,-539.0,0.00020547,2]
[370448839,1752023457969,-1151.74,0.00020547,2]
[370448840,1752023457980,-460.0,0.00020547,2]
[370448841,1752023457991,-460.0,0.00020547,2]
[370448842,1752023458001,-460.0,0.00020547,2]
[370448843,1752023458010,-676.78,0.00020547,2]
[370448844,1752023458020,-1444.34,0.00020547,2]
[370448845,1752023458029,-493.44607357,0.00020547,2]
[370448846,1752023458038,-460.0,0.00020547,2]
[370448847,1752023458048,-460.0,0.00020547,2]
[370448848,1752023458057,-460.0,0.00020547,2]
[370448849,1752023458067,-565.55,0.00020547,2]
[370448850,1752023458076,-312.444814,0.00020547,2]
[370448851,1752023458086,-312.444814,0.00020547,2]
[370448852,1752023458095,-460.0,0.00020547,2]
[370448853,1752023458105,-1510.41,0.00020547,2]
[370448854,1752023458115,-460.0,0.00020547,2]
[370448855,1752023458125,-460.0,0.00020547,2]
[370448856,1752023458134,-460.0,0.00020547,2]
[370448857,1752023458143,-178.177774,0.00020547,2]
[370448858,1752023458152,-460.0,0.00020547,2]
[370448859,1752023458162,-178.177774,0.00020547,2]
[370448860,1752023458171,-576.3,0.00020547,2]
[370448861,1752023458180,-500.52,0.00020547,2]
[370448862,1752023458190,-3346.57,0.00020547,2]
[370448863,1752023458200,-460.0,0.00020547,2]
[370448864,1752023458209,-460.0,0.00020547,2]
[370448865,1752023458219,-623.23,0.00020547,2]
[370448866,1752023458228,-366.6379324,0.00020548,2]
[370448867,1752023458238,-166.794053,0.00020551,2]
[370448868,1752023458247,-500.0,0.00020568,2]
[370448869,1752023458257,-1500.0,0.00020568,2]
[370448870,1752023458266,-1500.0,0.00020568,2]
[370448871,1752023458276,-1500.0,0.00020568,2]
[370448872,1752023458285,-500.0,0.00020568,2]
[370448873,1752023458294,-151.0,0.00020593,2]
[370448874,1752023458304,-151.0,0.00020593,2]
[370448875,1752023458313,-25000.0,0.00020594,2]
[370448876,1752023458323,-646.0,0.00020654,2]
[370448877,1752023458332,-2153.0,0.00020654,2]
[370448878,1752023458342,-166.794053,0.00020691,2]
[370448879,1752023458351,-151.0,0.000207,4]
[370448880,1752023458361,-151.0,0.00020713,2]
[370448881,1752023458370,-500.0,0.00020713,2]
[370448882,1752023458379,-151.0,0.00020713,2]
[370448883,1752023458389,-151.0,0.00020713,2]
[370448884,1752023458398,-151.0,0.00020713,2]
[370448885,1752023458408,-151.0,0.00020713,2]
[370448886,1752023458417,-151.0,0.00020713,2]
[370448887,1752023458427,-151.0,0.00020713,2]
[370448888,1752023458437,-151.0,0.00020713,2]
[370448889,1752023458447,-500.0,0.00020713,2]
[370448890,1752023458457,-5239.9754233,0.00020728,3]
[370448891,1752023458466,-150.0,0.00020731,2]
[370448892,1752023458475,-151.0,0.0002074,2]
[370448893,1752023458485,-500.0,0.0002074,2]
[370448894,1752023458495,-151.0,0.0002074,2]
[370448895,1752023458505,-292.0,0.0002074,2]
[370448896,1752023458514,-151.0,0.0002074,2]
[370448897,1752023458524,-198.0,0.0002074,2]
[370448898,1752023458534,-151.0,0.0002074,2]
[370448899,1752023458543,-151.0,0.0002074,2]
[370448900,1752023458553,-198.0,0.0002074,2]
[370448901,1752023458562,-817.454,0.00020766,2]
[370448902,1752023458571,-151.0,0.00020768,2]
[370448903,1752023458581,-500.0,0.00020768,2]
[370448904,1752023458590,-151.0,0.00020768,2]
[370448905,1752023458599,-198.72056785,0.00020768,2]
[370448906,1752023458609,-151.0,0.00020768,2]
[370448907,1752023458618,-151.0,0.00020768,2]
[370448908,1752023458627,-151.0,0.00020795,2]
[370448909,1752023458637,-246.8883299,0.00020795,2]
[370448910,1752023458647,-175.6042664,0.00020795,2]
[370448911,1752023458656,-194.68294943,0.00020795,2]
[370448912,1752023458666,-198.0,0.00020795,2]
[370448913,1752023458675,-151.0,0.000208,3]
[370448914,1752023458686,-2000.0,0.00020816,2]
[370448915,1752023458698,-460.0,0.00020821,2]
[370448916,1752023458708,-460.0,0.00020821,2]
[370448917,1752023458718,-306.00683556,0.00020821,2]
[370448918,1752023458728,-460.0,0.00020821,2]
[370448919,1752023458738,-206.72417044,0.00020821,2]
[370448920,1752023458747,-460.0,0.00020821,2]
[370448921,1752023458757,-460.0,0.00020821,2]
[370448922,1752023458768,-460.0,0.00020821,2]
[370448923,1752023458777,-460.0,0.00020821,2]
[370448924,1752023458786,-460.0,0.00020821,2]
[370448925,1752023458795,-221.64365544,0.00020821,2]
[370448926,1752023458805,-460.0,0.00020821,2]
[370448927,1752023458814,-460.0,0.00020821,2]
[370448928,1752023458823,-460.0,0.00020821,2]
[370448929,1752023458833,-460.0,0.00020821,2]
[370448930,1752023458842,-151.0,0.00020821,2]
[370448931,1752023458852,-460.0,0.00020821,2]
[370448932,1752023458861,-460.0,0.00020821,2]
[370448933,1752023458871,-159.16457,0.00020821,2]
[370448934,1752023458880,-460.0,0.00020821,2]
[370448935,1752023458890,-151.0,0.00020821,2]
[370448936,1752023458900,-550.72,0.00020821,2]
[370448937,1752023458909,-204.51,0.00020821,2]
[370448938,1752023458919,-525.20988328,0.00020821,2]
[370448939,1752023458929,-460.0,0.00020821,2]
[370448940,1752023458939,-300.708045,0.00020821,2]
[370448941,1752023458948,-460.0,0.00020821,2]
[370448942,1752023458958,-460.0,0.00020821,2]
[370448943,1752023458967,-546.68,0.00020821,2]
[370448944,1752023458977,-460.0,0.00020821,2]
[370448945,1752023458987,-460.0,0.00020821,2]
[370448946,1752023458997,-460.0,0.00020821,2]
[370448947,1752023459006,-460.0,0.00020821,2]
[370448948,1752023459016,-460.0,0.00020821,2]
[370448949,1752023459025,-460.0,0.00020821,2]
[370448950,1752023459034,-771.68,0.00020821,2]
[370448951,1752023459044,-460.0,0.00020821,2]
[370448952,1752023459054,-582.51,0.00020821,2]
[370448953,1752023459064,-460.0,0.00020821,2]
[370448954,1752023459074,-460.0,0.00020821,2]
[370448955,1752023459084,-460.0,0.00020821,2]
[370448956,1752023459095,-460.0,0.00020821,2]
[370448957,1752023459104,-460.0,0.00020821,2]
[370448958,1752023459114,-515.87,0.00020821,2]